bitfinex/quotes_ETHUSD_20260228
["timestamp","ask_amount","ask_price","bid_price","bid_amount"]
[1772315866114,1.27433234,1961.9,1961.2,1.27472975]
[1772315866414,5.10286542,1962.0,1961.3,0.498]
[1772315866415,2.50025966,1962.0,1961.3,0.498]
[1772315868241,1.22,1961.9,1961.4,1.27459977]
[1772315868616,1.22,1961.9,1961.3,1.77261886]
[1772315869018,1.28025966,1962.0,1961.4,0.498]
[1772315869019,0.002,1962.0,1961.4,0.498]
[1772315869311,0.002,1962.1,1961.7,0.497]
[1772315869499,0.826,1962.9,1962.0,0.497]
[1772315870303,1.27369064,1962.8,1962.1,1.77114504]
[1772315870899,0.006,1962.7,1961.9,1.77124435]
[1772315871204,0.006,1962.7,1962.0,0.497]
[1772315871945,0.006,1962.7,1961.4,0.497]
[1772315872129,0.006,1962.6,1961.4,1.77159953]
[1772315872323,0.006,1962.5,1961.5,0.497]
[1772315872518,1.22,1962.4,1961.5,0.497]
[1772315872713,1.226,1962.4,1961.5,0.497]
[1772315873136,0.006,1962.3,1961.5,0.497]
[1772315874430,1.28001518,1962.3,1961.5,1.27449572]
[1772315874637,2.49399619,1962.4,1961.6,0.497]
[1772315874841,2.49199619,1962.4,1961.6,0.497]
[1772315876458,2.49199619,1962.4,1961.8,0.497]
[1772315876459,2.49195667,1962.4,1961.8,0.497]
[1772315877356,2.49795667,1962.4,1961.6,1.274419]
[1772315878066,0.002,1962.2,1961.5,1.77250445]
[1772315879059,0.002,1962.2,1961.6,0.497]
[1772315879559,0.006,1962.1,1961.5,0.001]
[1772315880572,1.28014504,1962.1,1961.5,0.001]
[1772315881281,1.217,1962.0,1961.5,0.498]
[1772315883081,1.217,1962.0,1961.6,0.497]
[1772315883551,2.49122335,1962.0,1961.6,0.497]
[1772315885492,0.006,1961.9,1961.5,0.001]
[1772315886496,0.005,1961.8,1961.2,0.001]
[1772315887485,0.005,1961.7,1961.2,0.001]
[1772315887648,1.22,1961.6,1961.2,0.001]
[1772315888286,0.005,1961.5,1961.2,0.001]
[1772315889193,0.005,1961.3,1960.7,0.001]
[1772315889481,1.27479475,1961.1,1960.7,0.001]
[1772315893189,1.27479475,1961.1,1961.0,0.001]
[1772315894085,1.27479475,1961.1,1960.7,0.001]
[1772315895386,1.27979475,1961.1,1960.7,0.001]
[1772315895558,1.27479475,1961.1,1960.7,0.001]
[1772315896562,5.1037752,1961.3,1960.7,0.4985]
[1772315896890,5.09833184,1961.5,1960.7,0.4985]
[1772315896891,1.229,1961.2,1960.7,0.4985]
[1772315897460,1.27446982,1961.6,1960.7,0.4985]
[1772315897661,1.229,1961.3,1960.9,0.4975]
[1772315898062,1.27457404,1961.5,1960.9,0.4975]
[1772315898263,1.228,1961.4,1960.9,0.4975]
[1772315899979,1.228,1961.4,1961.0,0.4975]
[1772315900185,1.27457404,1961.5,1961.0,0.4975]
[1772315900396,1.229,1961.4,1961.0,0.4975]
[1772315902196,2.50861752,1961.4,1960.8,0.4975]
[1772315904695,2.50861752,1961.4,1960.9,0.4975]
[1772315904892,2.50861752,1961.4,1960.9,0.4985]
[1772315905098,0.002,1961.3,1960.9,0.4985]
[1772315908502,0.002,1961.3,1961.0,0.4975]
[1772315910098,1.234,1961.2,1961.0,0.4975]
[1772315910293,1.234,1961.2,1960.9,0.001]
[1772315911606,1.234,1961.2,1960.9,0.4985]
[1772315911912,2.50873193,1961.2,1960.9,0.4985]
[1772315912812,1.234,1961.2,1960.9,0.4985]
[1772315914121,5.10555781,1961.4,1960.9,0.4985]
[1772315914122,0.002,1961.4,1961.2,0.4965]
[1772315914282,1.236,1961.7,1961.4,0.4965]
[1772315914488,1.236,1961.8,1961.4,0.4965]
[1772315915118,1.243,1961.8,1961.2,0.4965]
[1772315915923,1.28140485,1961.7,1961.2,0.4965]
[1772315917214,0.007,1961.6,1961.0,0.4965]
[1772315919221,0.007,1961.6,1961.1,0.001]
[1772315919404,0.009,1961.6,1961.1,0.001]
[1772315920023,0.009,1961.6,1961.1,0.4975]
[1772315920723,1.27453479,1961.5,1961.1,0.4975]
[1772315920905,1.237,1961.4,1961.1,0.4975]
[1772315921596,1.237,1961.4,1960.9,0.001]
[1772315921597,0.007,1961.3,1960.9,0.001]
[1772315924721,1.28166476,1961.3,1960.9,0.001]
[1772315928013,1.241,1961.2,1960.9,0.001]
[1772315928733,1.248,1961.2,1960.9,0.001]
[1772315929847,2.52276043,1961.2,1960.9,0.001]
[1772315930436,2.52276043,1961.2,1960.9,0.4975]
[1772315930437,2.51576043,1961.2,1960.9,0.4975]
[1772315930641,1.241,1961.2,1960.9,0.4975]
[1772315931640,2.51573713,1961.2,1960.9,0.4975]
[1772315931842,1.241,1961.2,1960.9,0.4975]
[1772315932218,2.51573495,1961.2,1960.9,0.4975]
[1772315932418,2.52273495,1961.2,1960.9,0.001]
[1772315932740,2.52273495,1961.2,1960.8,0.4975]
[1772315933360,2.52273495,1961.2,1961.0,0.001]
[1772315933560,2.52273495,1961.2,1960.8,0.4975]
[1772315933561,0.002,1961.1,1960.8,0.4975]
[1772315933963,0.002,1961.1,1960.9,0.001]
[1772315935860,0.009,1961.1,1960.9,0.001]
[1772315936164,1.27485976,1961.0,1960.9,0.001]
[1772315936362,1.28185976,1961.0,1960.7,0.4975]
[1772315936658,1.249,1960.9,1960.6,0.48381666]
[1772315938864,1.2749898,1960.8,1960.6,0.48381666]
[1772315939060,1.249,1960.9,1960.6,0.48381666]
[1772315939765,2.52392869,1960.9,1960.6,0.48381666]
[1772315940062,1.249,1960.9,1960.6,0.48381666]
[1772315940261,2.52393586,1960.9,1960.6,0.48381666]
[1772315940869,1.249,1960.9,1960.6,0.48381666]
[1772315942685,0.46838648,1960.8,1960.2,3.82484487]
[1772315942874,1.72238648,1960.8,1960.3,0.48281666]
[1772315943078,2.99738178,1960.8,1960.4,0.48281666]
[1772315943281,0.46838648,1960.7,1960.2,3.34202821]
[1772315943584,0.46838648,1960.7,1960.0,0.48281666]
[1772315944082,0.46838648,1960.7,1960.0,1.758316]
[1772315944456,0.46838648,1960.7,1960.0,0.48281666]
[1772315945095,0.46838648,1960.5,1960.0,0.48281666]
[1772315945383,1.27511986,1960.6,1959.8,0.48281666]
[1772315945384,0.46838648,1960.3,1959.8,0.48281666]
[1772315945960,0.46838648,1960.3,1959.6,0.48281666]
[1772315946366,1.254,1960.2,1959.6,0.48281666]
[1772315946758,1.72238648,1960.2,1959.6,0.48281666]
[1772315946964,0.46838648,1960.1,1959.6,0.48281666]
[1772315947566,1.74384033,1960.1,1959.6,0.48281666]
[1772315947762,1.74384033,1960.1,1960.0,0.001]
[1772315948175,1.74384033,1960.1,1959.8,0.001]
[1772315948602,0.46838648,1960.0,1959.8,0.001]
[1772315948802,0.46838648,1960.0,1959.5,0.48381666]
[1772315949711,1.74396176,1959.9,1959.5,0.48381666]
[1772315949911,1.255,1959.8,1959.5,0.48381666]
[1772315952511,1.255,1959.8,1959.5,0.48281666]
[1772315953411,1.257,1959.8,1959.5,0.48281666]
[1772315954495,3.00081184,1960.2,1959.6,0.48281666]
[1772315954700,0.46838648,1960.2,1959.6,0.48281666]
[1772315954905,1.257,1960.2,1959.6,0.48281666]
[1772315956011,0.46838648,1959.9,1959.4,0.001]
[1772315956324,0.46838648,1959.7,1959.4,0.001]
[1772315956521,1.27577056,1959.6,1959.4,0.001]
[1772315957092,1.74856673,1959.6,1959.1,0.001]
[1772315959634,0.47279617,1959.5,1959.1,0.001]
[1772315959931,1.73179617,1959.4,1958.8,1.2772847]
[1772315960140,0.47279617,1959.2,1958.6,0.45317425]
[1772315960425,1.259,1959.4,1958.7,0.45317425]
[1772315960426,0.47279617,1959.4,1958.7,0.45317425]
[1772315960602,1.26,1959.2,1958.7,0.45317425]
[1772315960802,0.47279617,1959.4,1958.7,0.45317425]
[1772315961031,1.26,1959.3,1958.7,0.45317425]
[1772315961236,1.26,1959.3,1958.8,1.72946585]
[1772315961621,2.53596983,1959.3,1958.8,0.45317425]
[1772315962434,0.47279617,1959.2,1958.6,1.72954998]
[1772315963625,0.47279617,1959.2,1958.7,0.45317425]
[1772315963941,1.74883252,1959.2,1958.7,0.45317425]
[1772315964647,0.47279617,1959.0,1958.5,0.001]
[1772315964802,1.27603635,1959.2,1958.5,0.001]
[1772315964803,0.47279617,1958.9,1958.5,0.001]
[1772315965137,1.26,1958.8,1958.5,0.001]
[1772315966148,1.26,1959.0,1958.5,0.45417425]
[1772315966316,0.47279617,1958.9,1958.3,1.27660993]
[1772315966523,0.47279617,1958.9,1958.2,0.001]
[1772315966524,0.47279617,1958.9,1958.2,1.73081523]
[1772315967020,1.26,1958.8,1958.3,0.45317425]
[1772315967230,0.47279617,1958.9,1958.3,0.45317425]
[1772315967417,1.26,1958.8,1958.3,0.45317425]
[1772315968909,1.73279617,1958.8,1958.3,1.27659654]
[1772315969111,0.47279617,1958.7,1958.3,1.27659654]
[1772315969344,0.47279617,1958.7,1958.2,1.73084092]
[1772315970840,1.74921532,1958.7,1958.2,1.73085603]
[1772315971064,0.47279617,1958.7,1958.2,1.73085603]
[1772315971962,0.47279617,1958.7,1958.3,0.001]
[1772315973549,2.53533128,1958.8,1958.3,0.45417425]
[1772315973550,1.259,1958.8,1958.3,0.45417425]
[1772315974692,5.84879617,1959.4,1958.5,0.45317425]
[1772315974962,3.00870984,1959.4,1958.7,0.45317425]
[1772315975569,0.47279617,1959.3,1958.7,0.45317425]
[1772315977975,0.47279617,1959.2,1958.5,0.45317425]
[1772315978547,1.73279617,1959.1,1958.5,0.45317425]
[1772315980090,1.259,1959.2,1958.7,0.45317425]
[1772315981778,0.47279617,1959.3,1958.7,0.45317425]
[1772315981994,0.47279617,1959.3,1958.9,0.45317425]
[1772315982283,0.47279617,1959.3,1958.8,1.72946585]
[1772315986193,0.002,1959.2,1958.8,1.72946585]
[1772315986691,0.46613592,1959.2,1958.8,1.72946585]
[1772315986897,0.002,1959.2,1958.9,0.46645049]
[1772315987912,1.258,1959.4,1958.9,0.46645049]
[1772315988898,0.46613592,1959.5,1959.1,0.46645049]
[1772315989106,0.002,1959.5,1959.1,0.46645049]
[1772315991217,0.002,1959.5,1959.2,1.27603103]
[1772315991589,0.002,1959.5,1959.3,0.46645049]
[1772315992194,0.002,1959.5,1959.2,1.27603103]
[1772315992792,0.002,1959.5,1959.2,1.74248152]
[1772315993194,0.002,1959.8,1959.3,0.46645049]
[1772315993410,0.002,1959.8,1959.5,0.46645049]
[1772315998842,0.002,1959.8,1959.6,1.27577056]
[1772315999143,0.002,1959.7,1959.6,1.74222105]
[1772315999341,0.002,1959.8,1959.6,1.74222105]
[1772316000341,1.72013592,1960.0,1959.8,0.46645049]
[1772316000342,0.002,1960.0,1959.8,0.46645049]
[1772316000543,0.002,1960.6,1960.0,0.46645049]
[1772316000859,0.002,1960.6,1960.2,0.46645049]
[1772316001015,0.829,1960.9,1960.6,0.46645049]
[1772316001016,0.002,1960.9,1960.6,0.46645049]
[1772316001216,0.002,1960.8,1960.4,0.46645049]
[1772316002047,1e-08,1961.2,1960.5,2.55408468]
[1772316002246,1e-08,1961.2,1960.6,0.46645049]
[1772316002747,1e-08,1961.2,1960.7,1.27505482]
[1772316002953,1e-08,1961.2,1960.8,0.46645049]
[1772316003250,0.46413592,1961.1,1960.2,1.74183055]
[1772316003440,0.46613592,1961.1,1960.2,1.74183055]
[1772316003635,0.46413592,1960.9,1960.2,1.74183055]
[1772316004150,0.46413592,1960.9,1960.2,1.27538006]
[1772316004151,0.46613592,1960.8,1960.2,1.27538006]
[1772316004520,0.46613592,1960.8,1960.2,1.74183055]
[1772316004852,2.55408469,1961.2,1960.6,0.46645049]
[1772316004853,1e-08,1961.2,1960.6,0.46645049]
[1772316005517,0.46413592,1961.1,1960.4,0.46645049]
[1772316005722,0.46413592,1960.9,1960.2,1.74177461]
[1772316006517,1e-08,1961.2,1960.3,0.46645049]
[1772316006823,1e-08,1961.2,1960.2,3.8294088]
[1772316006824,0.46413593,1961.2,1960.6,1.27511986]
[1772316008572,0.46413593,1961.2,1960.6,1.74157035]
[1772316009368,1e-08,1961.2,1960.7,0.46645049]
[1772316011280,1e-08,1961.2,1960.9,0.46645049]
[1772316011457,0.002,1961.1,1960.9,0.46645049]
[1772316011657,1e-08,1961.2,1960.9,0.46645049]
[1772316013078,0.002,1961.6,1961.1,0.46645049]
[1772316013264,0.002,1961.6,1961.3,0.46645049]
[1772316014880,0.002,1961.6,1961.2,1.27472975]
[1772316015069,0.002,1961.6,1961.3,0.46645049]
[1772316015395,0.002,1961.6,1961.3,1.27461971]
[1772316017214,0.002,1961.6,1961.4,0.49225799]
[1772316017503,0.002,1961.6,1961.5,1.76679278]
[1772316018092,0.002,1961.6,1961.5,1.27453479]
[1772316019292,0.002,1961.6,1961.4,5.59058161]
[1772316019995,0.002,1961.6,1961.5,0.49225799]
[1772316020501,0.49933591,1962.7,1961.7,0.49225799]
[1772316020794,0.002,1962.7,1961.9,0.49225799]
[1772316020969,0.002,1962.6,1961.9,0.49225799]
[1772316021390,0.002,1962.6,1962.0,1.76646797]
[1772316021673,0.002,1962.5,1962.0,1.76646797]
[1772316021873,0.002,1962.5,1962.1,0.49225799]
[1772316022271,0.002,1962.5,1961.9,1.76649346]
[1772316022692,0.002,1962.5,1962.0,0.49225799]
[1772316023399,0.002,1962.5,1962.1,1.76640303]
[1772316024117,0.002,1962.5,1962.1,1.27414504]
[1772316025212,0.002,1962.5,1962.2,0.49225799]
[1772316025710,0.002,1962.5,1962.0,0.49225799]
[1772316026411,0.50133591,1962.5,1961.8,1.27430113]
[1772316026583,0.49933591,1962.5,1961.6,1.27442832]
[1772316026778,0.49933591,1962.3,1961.6,1.27442832]
[1772316027000,0.002,1962.4,1961.6,1.27442832]
[1772316027001,0.49933591,1962.1,1961.6,1.27442832]
[1772316027677,0.49933591,1962.1,1961.5,5.09901916]
[1772316027905,0.002,1962.0,1961.6,0.49225799]
[1772316028095,0.002,1962.2,1961.6,0.49225799]
[1772316029607,0.50133591,1962.1,1961.5,5.09901916]
[1772316029908,0.49933591,1962.1,1961.5,5.09901916]
[1772316030113,0.49933591,1962.1,1961.5,0.49325799]
[1772316030315,0.002,1962.0,1961.5,0.49325799]
[1772316030625,0.002,1962.0,1961.4,0.001]
[1772316030626,0.49933591,1961.9,1961.2,0.001]
[1772316030798,0.49933591,1961.7,1961.2,0.001]
[1772316032107,1.27446982,1961.6,1961.2,0.001]
[1772316033800,0.002,1961.5,1961.2,0.49325799]
[1772316034012,0.002,1961.7,1961.2,0.49325799]
[1772316034330,0.002,1961.7,1961.2,1.76794017]
[1772316034695,0.002,1961.6,1961.2,0.001]
[1772316035517,0.002,1961.5,1961.2,0.001]
[1772316036524,1.27437067,1961.8,1961.2,0.49325799]
[1772316036827,0.002,1961.6,1961.2,0.49325799]
[1772316037126,0.002,1961.6,1961.3,0.001]
[1772316037501,0.002,1961.5,1961.3,0.001]
[1772316037898,0.49933591,1961.5,1961.0,0.001]
[1772316038097,0.50133591,1961.4,1961.0,0.001]
[1772316038503,1.77599818,1961.4,1961.0,0.001]
[1772316038706,1.73933591,1961.3,1961.0,0.001]
[1772316040034,0.002,1961.2,1961.0,0.001]
[1772316040538,0.002,1961.6,1961.2,0.49225799]
[1772316040729,0.002,1961.6,1961.3,0.49225799]
[1772316040931,1.27628538,1961.9,1961.1,1.27479475]
[1772316041130,0.002,1961.8,1961.2,0.49225799]
[1772316041528,0.002,1961.7,1961.2,0.49225799]
[1772316041838,0.50133591,1961.7,1961.0,1.27580909]
[1772316042031,0.002,1961.6,1961.0,1.27580909]
[1772316042344,1.73833591,1961.5,1961.0,0.001]
[1772316042833,1.27659977,1961.4,1961.0,0.001]
[1772316043141,0.002,1961.4,1961.0,0.001]
[1772316045339,0.002,1961.3,1960.6,0.45560537]
[1772316046344,0.45524276,1961.4,1960.6,0.45560537]
[1772316046550,0.4912694,1961.2,1960.5,1.27517913]
[1772316046753,0.4892694,1961.2,1960.5,1.27517913]
[1772316047054,1.7292694,1961.7,1961.0,0.49746257]
[1772316048349,0.4912694,1961.6,1960.6,0.49746257]
[1772316048928,1.76380419,1961.5,1960.7,1.77251739]
[1772316049239,1.76380419,1961.5,1960.8,0.49746257]
[1772316049769,0.4912694,1961.4,1960.5,0.49746257]
[1772316050060,0.4912694,1961.4,1960.4,1.27524994]
[1772316050061,0.4912694,1961.4,1960.7,0.49846257]
[1772316050246,0.4912694,1961.3,1960.7,0.49846257]
[1772316050420,1.239,1961.2,1960.7,0.49846257]
[1772316051245,0.4912694,1961.3,1960.7,0.49846257]
[1772316051532,0.002,1961.1,1960.7,1.77351716]
[1772316052544,0.002,1961.6,1961.0,0.49746257]
[1772316053250,0.002,1961.6,1961.1,1.27479475]
[1772316053451,0.002,1961.6,1961.2,0.49746257]
[1772316055050,0.002,1961.7,1961.4,0.49746257]
[1772316055427,0.002,1961.7,1961.6,0.49746257]
[1772316057464,0.002,1961.9,1961.7,0.49746257]
[1772316059551,0.002,1961.9,1961.8,1.27433989]
[1772316060266,0.002,1961.9,1961.7,1.77181997]
[1772316061172,2.50799425,1962.4,1961.7,1.77181997]
[1772316061173,1.234,1962.7,1961.9,0.49746257]
[1772316061374,1.234,1962.7,1962.0,0.49746257]
[1772316061542,1.234,1962.7,1962.2,0.49746257]
[1772316062135,0.4892694,1962.6,1962.0,0.49746257]
[1772316062374,0.4892694,1962.6,1961.8,1.27429256]
[1772316062542,0.4892694,1962.6,1961.8,1.77175513]
[1772316062744,0.4892694,1962.6,1961.9,0.49746257]
[1772316063063,0.4892694,1962.5,1961.5,0.49746257]
[1772316063267,0.002,1961.9,1961.6,0.49746257]
[1772316063838,0.4892694,1961.8,1961.0,0.065536]
[1772316064169,0.4892694,1961.3,1960.8,0.001]
[1772316064365,1.3152694,1961.3,1960.8,0.001]
[1772316064973,0.4892694,1961.2,1960.8,0.001]
[1772316065152,0.4892694,1961.2,1960.7,0.001]
[1772316066064,1.27479475,1961.1,1960.7,0.001]
[1772316066777,0.4892694,1961.0,1960.7,0.001]
[1772316066975,0.4892694,1960.9,1960.5,0.001]
[1772316068050,1.27505482,1960.7,1960.5,0.001]
[1772316068572,1.76432422,1960.7,1960.3,0.001]
[1772316069466,0.4892694,1960.6,1960.3,0.001]
[1772316070193,1.2751849,1960.5,1960.2,0.001]
[1772316070572,0.4892694,1960.4,1960.2,0.001]
[1772316070772,1.7262694,1961.0,1960.1,0.49746257]
[1772316071171,1.237,1961.0,1960.1,0.49746257]
[1772316072479,1.237,1961.0,1960.3,0.49746257]
[1772316073069,5.58774221,1961.4,1960.3,0.49746257]
[1772316073269,1.27451846,1961.6,1960.8,0.49746257]
[1772316074402,1.27451846,1961.6,1960.8,1.77238918]
[1772316074904,1.27451846,1961.6,1960.9,0.49746257]
[1772316075904,0.002,1961.2,1960.9,0.49746257]
[1772316076592,0.002,1961.2,1960.9,1.77233812]
[1772316076988,0.002,1961.3,1961.0,0.48022035]
[1772316077737,0.002,1961.3,1960.8,1.27494389]
[1772316078398,0.002,1961.3,1960.8,1.75516424]
[1772316079300,0.002,1961.3,1960.8,0.48022035]
[1772316079492,0.002,1961.3,1960.8,1.75520449]
[1772316080891,1.69638568,1961.3,1960.5,0.48022035]
[1772316081628,0.46038568,1961.2,1960.5,0.48022035]
[1772316081825,0.46038568,1961.2,1960.3,1.75550149]
[1772316082195,0.46038568,1961.2,1960.3,1.7555218]
[1772316082396,0.46038568,1961.2,1960.3,1.75553201]
[1772316083921,1.73518043,1961.1,1960.3,1.75553201]
[1772316084097,1.73518043,1961.1,1960.2,0.001]
[1772316084098,0.46038568,1960.9,1960.2,0.001]
[1772316085822,1.2749898,1960.8,1960.2,0.001]
[1772316086219,2.96737548,1960.8,1960.2,0.001]
[1772316086424,0.46038568,1960.7,1960.2,0.001]
[1772316087927,0.46038568,1960.5,1960.0,0.001]
[1772316088526,0.46038568,1960.5,1960.3,0.001]
[1772316089216,1.234,1960.5,1960.3,0.001]
[1772316090022,1.234,1960.5,1960.0,0.001]
[1772316090023,0.46038568,1960.4,1960.0,0.001]
[1772316090234,2.50919349,1960.5,1960.0,0.001]
[1772316092622,2.96957917,1960.5,1960.0,0.001]
[1772316093133,0.46038568,1960.4,1960.0,0.001]
[1772316094636,1.275315,1960.3,1960.0,0.001]
[1772316095221,0.46038568,1960.2,1960.0,0.001]
[1772316095929,1.275315,1960.3,1960.0,0.001]
[1772316096231,1.241,1960.2,1960.0,0.001]
[1772316096621,0.46038568,1960.7,1960.0,0.48122035]
[1772316096824,1.241,1960.6,1960.0,0.48122035]
[1772316098947,1.2751849,1960.5,1960.0,1.75671216]
[1772316099455,2.51616579,1960.6,1960.0,1.75671216]
[1772316099851,2.97655147,1960.6,1960.0,0.48122035]
[1772316100257,2.97655147,1960.6,1960.1,0.001]
[1772316100565,0.002,1960.5,1960.1,0.001]
[1772316101542,0.46038568,1960.4,1959.9,0.001]
[1772316101727,0.46038568,1960.4,1959.5,0.48022035]
[1772316103259,0.46038568,1960.4,1959.3,1.27591439]
[1772316103260,0.46038568,1960.1,1959.2,0.48122035]
[1772316103432,1.70238568,1960.0,1959.2,0.48122035]
[1772316103833,0.46038568,1959.9,1959.2,0.48122035]
[1772316105438,1.27564037,1959.8,1959.2,0.48122035]
[1772316105758,1.74937464,1959.8,1959.2,1.75224992]
[1772316106069,1.241,1959.7,1959.2,1.75224992]
[1772316106371,1.241,1959.7,1959.2,0.47622035]
[1772316106574,1.241,1959.7,1959.2,1.75224249]
[1772316107276,1.241,1959.7,1959.2,0.47622035]
[1772316107442,1.27544513,1960.1,1959.2,1.75224591]
[1772316107775,1.69917534,1960.0,1959.3,0.47128661]
[1772316107956,0.45717534,1959.9,1959.3,0.47128661]
[1772316108276,0.45717534,1959.9,1959.0,0.001]
[1772316108277,0.45717534,1959.8,1959.0,0.001]
[1772316109761,1.7328808,1959.7,1959.0,0.001]
[1772316109978,1.242,1959.7,1959.0,0.47228661]
[1772316110973,1.69917534,1959.7,1959.0,0.47228661]
[1772316111176,0.45717534,1959.5,1958.9,0.001]
[1772316111576,0.45717534,1959.5,1958.7,0.47128661]
[1772316111877,0.45717534,1959.3,1958.7,0.47128661]
[1772316112181,1.241,1959.2,1958.7,0.47128661]
[1772316112358,1.241,1959.2,1958.5,0.47128661]
[1772316112758,0.45717534,1959.1,1958.4,0.001]
[1772316113991,1.73333664,1959.0,1958.4,0.001]
[1772316114210,0.45717534,1958.9,1958.4,0.001]
[1772316114415,0.45717534,1958.9,1958.0,1.27776573]
[1772316114416,0.45717534,1958.6,1957.6,0.47128661]
[1772316114703,0.45717534,1958.3,1957.4,0.04795943]
[1772316114888,0.827,1958.2,1957.4,0.04795943]
[1772316115090,0.45717534,1958.3,1957.4,0.04795943]
[1772316115091,0.827,1958.1,1957.4,0.04795943]
[1772316115888,0.45717534,1958.3,1957.4,0.04795943]
[1772316116085,0.827,1958.1,1957.6,0.04795943]
[1772316116673,1.30302028,1958.1,1957.3,1.32619848]
[1772316117386,0.47602028,1958.0,1957.3,0.04895943]
[1772316117589,0.47602028,1958.0,1957.3,1.32622809]
[1772316117758,0.47602028,1958.0,1957.3,0.04895943]
[1772316117960,1.75289856,1957.9,1957.3,0.001]
[1772316118892,5.10751315,1958.0,1957.3,0.04895943]
[1772316118893,1.27686187,1958.0,1957.3,0.04895943]
[1772316119095,1.24,1958.1,1957.3,0.04895943]
[1772316120168,1.24,1958.1,1957.4,1.32516388]
[1772316120576,1.24,1958.1,1957.5,0.04795943]
[1772316120771,2.51675178,1958.1,1957.5,0.04795943]
[1772316121378,0.47602028,1958.8,1957.8,0.04795943]
[1772316121699,6.34484188,1959.0,1957.4,3.83046561]
[1772316121700,1.24,1959.0,1958.2,0.04795943]
[1772316122192,1.24,1959.0,1958.4,0.04795943]
[1772316123863,2.51618654,1959.0,1958.4,0.04795943]
[1772316124095,1.24,1959.0,1958.3,0.04795943]
[1772316124294,1.24,1959.0,1958.4,1.27655228]
[1772316124494,2.51618443,1959.0,1958.3,1.32452667]
[1772316124808,1.24,1959.0,1958.3,1.32452667]
[1772316125897,2.99116402,1959.1,1958.3,1.32452667]
[1772316126065,1.71502028,1959.1,1958.3,1.32452667]
[1772316126596,0.47602028,1959.0,1958.3,1.27656724]
[1772316126983,0.002,1958.9,1958.3,1.27656724]
[1772316127179,0.47802028,1958.9,1958.3,1.27656724]
[1772316128301,1.2782693,1958.9,1958.2,1.27668266]
[1772316128472,0.47602028,1958.8,1958.2,1.27668266]
[1772316128671,0.47602028,1958.8,1957.8,1.2769435]
[1772316129606,0.47602028,1958.8,1957.7,1.27695767]
[1772316129824,0.47602028,1958.8,1957.8,0.04795943]
[1772316129983,1.239,1958.7,1957.8,0.04795943]
[1772316130303,1.71502028,1958.7,1957.9,1.27687828]
[1772316130503,0.002,1958.9,1958.2,0.04795943]
[1772316130905,0.002,1959.2,1958.6,0.04595943]
[1772316131612,0.002,1959.2,1958.5,3.58726116]
[1772316131613,0.002,1959.2,1958.8,0.04595943]
[1772316132404,0.002,1959.2,1958.9,1.27622645]
[1772316133693,0.002,1959.2,1958.6,5.10558061]
[1772316134005,0.47902028,1959.2,1958.6,5.10558061]
[1772316134511,0.002,1959.2,1958.6,5.10558061]
[1772316136213,0.002,1959.6,1958.9,0.04395943]
[1772316136408,0.002,1959.6,1959.0,1.2761613]
[1772316137314,0.002,1959.6,1959.1,2.59722059]
[1772316138136,0.002,1959.6,1959.1,0.04395943]
[1772316138309,0.002,1959.6,1959.0,1.2761613]
[1772316138310,0.002,1959.6,1959.0,1.32012073]
[1772316139338,0.002,1959.1,1959.0,1.32012073]
[1772316139540,0.002,1959.2,1959.0,1.32012073]
[1772316139710,0.002,1959.6,1959.0,2.76412073]
[1772316139912,0.002,1959.4,1959.0,2.76412073]
[1772316142713,0.48002028,1959.4,1959.0,1.2761613]
[1772316144636,0.002,1959.4,1958.8,1.32025103]
[1772316144953,0.002,1959.6,1959.1,0.04195943]
[1772316146727,0.002,1959.6,1959.2,1.27603103]
[1772316147055,0.002,1959.6,1959.2,1.31799046]
[1772316147457,0.002,1959.9,1959.4,0.04195943]
[1772316147660,0.002,1959.9,1959.3,2.55326116]
[1772316147661,0.48102028,1960.5,1959.8,2.59522059]
[1772316147831,0.48102028,1960.5,1959.9,0.04195943]
[1772316148157,0.002,1960.5,1959.9,0.04195943]
[1772316148857,0.002,1960.5,1960.0,1.31746963]
[1772316149162,0.002,1960.5,1960.0,1.2755102]
[1772316149163,0.48102028,1960.5,1960.0,1.2755102]
[1772316149361,0.48102028,1960.5,1959.6,5.1029903]
[1772316149549,0.48102028,1960.5,1959.5,1.31772999]
[1772316149550,0.48102028,1960.5,1959.5,1.27583567]
[1772316150743,1.27524994,1960.4,1959.5,1.27583567]
[1772316151029,0.46028853,1960.4,1959.6,0.4714305]
[1772316151245,0.46028853,1960.4,1959.7,0.4714305]
[1772316152969,0.46028853,1960.4,1959.8,1.27564037]
[1772316153685,0.46028853,1960.3,1959.6,1.27572151]
[1772316153892,0.46028853,1960.3,1959.3,1.7473964]
[1772316154096,0.46028853,1960.3,1959.3,5.02164005]
[1772316154250,0.46028853,1960.3,1959.4,0.4714305]
[1772316156383,0.46028853,1960.2,1959.5,1.27583567]
[1772316156677,0.46028853,1960.2,1959.5,1.74726617]
[1772316157779,0.46028853,1960.2,1959.6,0.4714305]
[1772316157980,0.002,1960.5,1959.8,0.4714305]
[1772316158482,0.002,1960.5,1959.9,1.74700578]
[1772316158864,0.002,1960.5,1960.0,0.4714305]
[1772316161177,0.002,1960.5,1959.9,3.09881893]
[1772316161178,1e-08,1960.5,1959.9,3.09881893]
[1772316161513,1e-08,1960.5,1959.8,1.2756029]
[1772316162302,1e-08,1960.5,1959.6,0.4714305]
[1772316162465,1e-08,1960.5,1959.7,1.27565514]
[1772316163701,1e-08,1960.5,1959.5,5.57476722]
[1772316164993,1e-08,1960.5,1959.6,0.48428386]
[1772316165509,0.45354248,1960.4,1959.6,0.48428386]
[1772316165708,0.45354248,1960.4,1959.7,1.27570546]
[1772316165879,0.45354248,1960.4,1959.7,1.75998932]
[1772316166815,0.46387487,1960.3,1959.5,1.27678579]
[1772316167728,1.27538006,1960.2,1959.5,0.001]
[1772316167923,0.46387487,1960.1,1959.5,0.001]
[1772316169800,5.10141621,1960.3,1959.6,0.47997526]
[1772316170014,0.46587487,1960.4,1959.7,1.82324365]